Cogmind - Beta 13 @@@ ROGUE MODE // 2024.04.09 @ 01:07:52 Player: Thunder948 Result: Destroyed by Y-45 Defender with Beam Rifle Performance ------------- Evolutions (1) 500 Regions Visited (2) 400 Robots Destroyed (39) 195 Value Destroyed (1047) 1047 Prototype IDs (3) 60 Alien Tech Used (0) 0 Bonus (21) 21 TOTAL SCORE: 2223 Bonus ------- High Alert Combat Kills 21 Cogmind --------- Core Integrity 0/400 Matter 314/350 Energy 100/100 System Corruption 2% Temperature Cool (27) Movement Core (400) Ox7 Location -9/Materials Parts ------- > --- POWER (2) -------- (None) > --- PROPULSION (3) --- (None) > --- UTILITY (2) ------ Large Storage Unit Small Matter Pod > --- WEAPON (2) ------- Spread Laser > --- INVENTORY (15) --- (None) Peak State ------------ > --- POWER ------------ Ion Engine > --- PROPULSION ------- Light Treads Light Treads Improved Treads > --- UTILITY ---------- Improved Targeting Computer Hardened Light Armor Plating > --- WEAPON ----------- Beam Cannon Grenade Launcher > --- INVENTORY -------- Large Storage Unit Small Matter Pod [Rating: 11] Favorites ----------- Power Ion Engine Engine Ion Engine Propulsion Light Treads Treads Light Treads Utility Large Storage Unit Device ECM Suite Storage Large Storage Unit Processor Improved Targeting Computer Protection Hardened Light Armor Plating Weapon Grenade Launcher Energy Gun Medium Laser Energy Cannon Beam Cannon Launcher Grenade Launcher Build | -11 -10 -9 ------- Run | Yrd Mat Mat Slots Evolved 2 | . . 2 Power 1 | . . 1 Propulsion 1 | . . 1 Utility . | . . . Weapon . | . . . Parts Attached 37 | 6 15 16 Power 2 | 1 1 . Engine 2 | 1 1 . Core . | . . . Reactor . | . . . Propulsion 7 | 2 2 3 Treads 7 | 2 2 3 Leg . | . . . Wheel . | . . . Hover . | . . . Flight . | . . . Utility 11 | 1 4 6 Device 2 | . 1 1 Storage 6 | 1 3 2 Processor 2 | . . 2 Hackware . | . . . Protection 1 | . . 1 Artifact . | . . . Weapon 17 | 2 8 7 Energy Gun 9 | 2 1 6 Energy Cannon 6 | . 5 1 Ballistic Gun . | . . . Ballistic Cannon . | . . . Launcher 2 | . 2 . Special Weapon . | . . . Impact Weapon . | . . . Slashing Weapon . | . . . Piercing Weapon . | . . . Special Melee Weapon . | . . . Unidentified Prototypes 1 | . . 1 Parts Lost 11 | . . 11 Power 1 | . . 1 Propulsion 5 | . . 5 Utility 1 | . . 1 Weapon 4 | . . 4 Highest Loss Streak 5 | . . 5 To Critical Strikes . | . . . Average Slot Usage (%) 76 | . 88 64 Engine 11 | . 13 8 Treads 24 | . 28 20 Device 1 | . 2 1 Storage 11 | . 15 8 Processor 3 | . . 7 Protection 1 | . . 3 Energy Gun 4 | . 7 1 Energy Cannon 7 | . 8 5 Launcher 10 | . 12 8 Naked Turns 8 | . . 8 Heaviest Build 33 | 13 33 32 Greatest Support 63 | 40 40 63 Greatest Overweight (x) 9 | . 1 9 Average Overweight (x) . | . . . Largest Inventory Capacity 15 | 8 15 15 Average Capacity 11 | 6 14 8 Most Carried 6 | 4 6 4 Average Carried 1 | . 2 1 Final Capacity 15 | 8 15 15 Final Carried 1 | . 1 . Class Distribution -------------------- 100% | Mutant Dominant Class ---------------- Mutant | -10/Materials Mutant | -9/Materials Resources | -11 -10 -9 ----------- Run | Yrd Mat Mat Matter Collected 856 | 227 218 411 Remotely . | . . . Salvage Created 804 | . 524 280 Parts 54 | . 33 21 Haulers Intercepted . | . . . Recyclers Shooed 1 | . . 1 Parts Field Recycled . | . . . Retrieved Matter . | . . . Parts Self-Destructed . | . . . Prevented . | . . . Kills | -11 -10 -9 ------- Run | Yrd Mat Mat Combat Hostiles Destroyed 30 | . 13 17 Melee 5 | . . 5 Guns 3 | . 2 1 Cannons 7 | . 6 1 AOE 15 | . 5 10 Classes Destroyed 8 | . 5 3 Builder 1 | . . 1 Tunneler 1 | . . 1 Recycler 1 | . 1 . Mechanic 1 | . 1 . Watcher 5 | . 3 2 Swarmer 10 | . 3 7 Grunt 16 | . 10 6 Sentry 4 | . . 4 Best Kill Streak 7 | . 4 7 Combat Bots Only 7 | . 3 7 Max Kills in Single Turn 3 | . 2 3 Gunslinging . | . . . Exploded 3 | . 2 3 Melee 1 | . . 1 Uniques/NPCs Destroyed . | . . . Combat | -11 -10 -9 -------- Run | Yrd Mat Mat Hostile Shots Fired 232 | . 89 143 Missed 64 | . 19 45 Damage Taken 2139 | . 875 1264 Core 523 | . 112 411 Absorbed by Shields . | . . . Regen/Repaired (Parts) 56 | . 56 . Core Remaining (%) 77 | 100 55 . Volleys Fired 95 | . 47 48 Largest 2 | . 2 2 Hottest 120 | . 120 110 Shots Fired 154 | . 90 64 Gun 52 | . 42 10 Cannon 59 | . 36 23 Launcher 43 | . 12 31 Special . | . . . Kinetic . | . . . Thermal 107 | . 78 29 Explosive 43 | . 12 31 Electromagnetic 4 | . . 4 Robot Hit Streak 31 | . 6 31 Robot Miss Streak 11 | . 3 11 Penetration Max . | . . . Secondary Targets 1 | . 1 . Max Gunslinging Chain 1 | . 1 . Shots Hit Robots 93 | . 53 40 Core Hits 87 | . 32 55 Critical Kills . | . . . Critical Parts Destroyed . | . . . Critical Strikes 4 | . 4 . Burn 4 | . 4 . Melee Attacks . | . . . Impact . | . . . Slashing . | . . . Piercing . | . . . Sneak Attacks . | . . . Combat Hostiles . | . . . Follow-up Attacks . | . . . Damage Inflicted 2742 | . 1201 1541 Guns 411 | . 354 57 Cannons 699 | . 369 330 Explosions 1552 | . 473 1079 Melee . | . . . Ramming 80 | . 5 75 Kinetic . | . . . Thermal 1090 | . 723 367 Explosive 1552 | . 473 1079 Electromagnetic 20 | . . 20 Impact . | . . . Slashing . | . . . Piercing . | . . . Highest Corruption 2 | . . 2 Average Corruption 2 | . . 2 Corruption Purged . | . . . Corruption Blocked . | . . . Effects 1 | . . 1 Matter Fused 1 | . . 1 Overload Shots . | . . . Overflow Damage 54 | . 19 35 Projectiles 11 | . 9 2 Explosions 43 | . 10 33 Melee . | . . . Knockbacks . | . . . Impact . | . . . Kinetic . | . . . Secondary . | . . . Self-Inflicted Damage 78 | . 56 22 Shots 4 | . 3 1 Rammed 45 | . 2 43 Targets Rammed 49 | . 2 47 Kicked . | . . . Crushed 4 | . . 4 Highest Temperature 388 | . 388 219 Average Temperature 153 | . 186 62 Received Heat Transfer 747 | . 435 312 Effects 14 | . 14 . Shutdowns 3 | . 3 . Energy Bleed 3 | . 3 . Interference 4 | . 4 . Short Circuit 3 | . 3 . Damage (minor) 1 | . 1 . Siege Activations . | . . . Robots Corrupted . | . . . Combat Hostiles . | . . . Parts Fried . | . . . Impact Corruptions . | . . . Robots Melted . | . . . Combat Hostiles . | . . . Parts Melted 6 | . 2 4 Heat Transferred 2744 | . 1991 753 Parts Sabotaged . | . . . Parts Stolen . | . . . Parts Stripped . | . . . Power Chain Reactions . | . . . Alert | -11 -10 -9 ------- Run | Yrd Mat Mat Peak Influence 460 | . 209 460 Initial 63 | . . 63 Average 180 | . 94 287 Maximum Alert Level 2 | . 1 2 Low Security (%) 58 | 100 96 16 Level 1 37 | . 3 75 Level 2 3 | . . 8 Level 3 . | . . . Level 4 . | . . . Level 5 . | . . . High Security . | . . . Max Security . | . . . Squads Dispatched 2 | . 1 1 Investigation 1 | . 1 . Extermination . | . . . Reinforcement 1 | . . 1 Assault . | . . . Garrison . | . . . Intercept . | . . . Searches Triggered . | . . . Construction Impeded . | . . . Haulers Reinforced . | . . . Active Scanning Responses . | . . . Cargo Convoy Interrupts . | . . . Stealth | -11 -10 -9 --------- Run | Yrd Mat Mat Distress Signals 6 | . 3 3 Communications Jammed . | . . . Distress Signals . | . . . Times Spotted 45 | . 19 26 Peak Tracking Total 7 | . 5 7 Tactical Retreats 2 | . 1 1 Traps | -11 -10 -9 ------- Run | Yrd Mat Mat Traps Triggered 2 | . . 2 Indirectly . | . . . Trap Hack Attempts . | . . . Triggered . | . . . Disarmed . | . . . Reprogrammed . | . . . Reused . | . . . Traps Extracted . | . . . Installed . | . . . Triggered . | . . . Machines | -11 -10 -9 ---------- Run | Yrd Mat Mat Machines Disabled 6 | . 3 3 Max in Single Turn 2 | . 2 2 Machines Repaired . | . . . Machines Dismantled . | . . . Machines Sabotaged . | . . . Overloaded Fab Kills . | . . . Hacking | -11 -10 -9 --------- Run | Yrd Mat Mat Machines Accessed 9 | . 5 4 Terminals 6 | . 3 3 Fabricators . | . . . Repair Stations 1 | . 1 . Recycling Units 1 | . 1 . Scanalyzers 1 | . . 1 Garrison Access . | . . . Total Hacks 22 | . 11 11 Successful 15 | . 8 7 Failed 7 | . 3 4 Catastrophic 2 | . . 2 Database Lockouts . | . . . Manual 7 | . 3 4 Terminals 13 | . 5 8 Fabricators . | . . . Repair Stations 3 | . 3 . Recycling Units 3 | . 3 . Scanalyzers 3 | . . 3 Garrison Access . | . . . Terminal Hacks 8 | . 3 5 Prototype ID Bank 1 | . . 1 Emergency Access Points 1 | . . 1 Alert Level 2 | . 1 1 Locate Traps 1 | . 1 . Zone Layout 3 | . 1 2 Fabricator Hacks . | . . . Repair Station Hacks 2 | . 2 . Scan Component 1 | . 1 . Repair 1 | . 1 . Recycling Unit Hacks 3 | . 3 . Recycle Component 1 | . 1 . Process 1 | . 1 . Report Inventory 1 | . 1 . Scanalyzer 2 | . . 2 Insert Component 1 | . . 1 Analyze 1 | . . 1 Garrison Access Hacks . | . . . Unauthorized Hacks . | . . . Terminals . | . . . Fabricators . | . . . Repair Stations . | . . . Recycling Units . | . . . Scanalyzers . | . . . Garrison Access . | . . . Data Cores Recovered . | . . . Used . | . . . Hacking Detections 7 | . 4 3 Full Trace Events 1 | . 1 . Feedback Events . | . . . Feedback Blocked . | . . . Robot Schematics Acquired . | . . . Robots Built . | . . . Authchips . | . . . Time . | . . . Total Robot Build Rating . | . . . Part Schematics Acquired 1 | . . 1 Parts Built . | . . . Authchips . | . . . Time . | . . . Total Part Build Rating . | . . . Parts Repaired 1 | . 1 . Time 26 | . 26 . Parts Recycled 1 | . 1 . Recycled Matter 174 | . 174 . Retrieved Matter . | . . . Retrieved Components . | . . . Parts Scanalyzed 1 | . . 1 Part Schematics Acquired 1 | . . 1 Parts Damaged . | . . . Bothacking | -11 -10 -9 ------------ Run | Yrd Mat Mat Used RIF Installer . | . . . Robots Hacked . | . . . Non-combat . | . . . Combat . | . . . Robot Hacks Applied . | . . . Relay Couplers Released . | . . . Fabnet Peak Effective % . | . . . Robots Rewired . | . . . Allies Hacked . | . . . Hacks Repelled . | . . . Allies | -11 -10 -9 -------- Run | Yrd Mat Mat Total Allies . | . . . Largest Group . | . . . Highest-Rated Group . | . . . Highest-Rated Ally . | . . . Total Orders . | . . . Ally Attacks . | . . . Total Damage . | . . . Kills . | . . . Allies Corrupted . | . . . Allies Melted . | . . . Intel | -11 -10 -9 ------- Run | Yrd Mat Mat Robot Analysis Total . | . . . Derelict Logs Recovered . | . . . Drone Launches . | . . . Drone Recoveries . | . . . Exploration | -11 -10 -9 ------------- Run | Yrd Mat Mat Turns Passed 1937 | 113 900 924 Spaces Moved 964 | 71 416 477 Core 181 | 12 . 169 Treads 783 | 59 416 308 Legs . | . . . Wheels . | . . . Hover . | . . . Flight . | . . . Fastest Speed 50 | 50 160 50 Average Speed 151 | 141 160 144 Slowest Speed 500 | 160 240 500 Overloaded Moves . | . . . Propulsion Burnouts . | . . . Robots Hopped . | . . . Cave-ins Triggered . | . . . Exploration Rate (%) 34 | 5 52 45 Regions Visited 2 Branch Regions . Pre-discovered Areas . | . . . Known Exits Taken . | . . . Unknown Exits Taken 2 | 1 1 . Scrap Searched . | . . . Spaces Dug . | . . . Terrain Destroyed 188 | . 86 102 Melee . | . . . Projectile . | . . . AOE 188 | . 86 102 Terrain Rammed . | . . . Walls Destroyed . | . . . Machines Disabled . | . . . Actions | -11 -10 -9 --------- Run | Yrd Mat Mat Total 1264 | 84 557 623 Wait 75 | . 54 21 Move 962 | 70 415 477 Hop . | . . . Pick Up 33 | 7 13 13 Fast Attach . | . . . Attach 23 | 6 4 13 Detach 2 | . 2 . Swap 14 | . 11 3 Drop 11 | 1 9 1 Fire 95 | . 47 48 Melee . | . . . Ram 14 | . . 14 Kick . | . . . Crush 35 | . 2 33 Escape Stasis . | . . . Rewire . | . . . Trap . | . . . Miscellaneous . | . . . Route ------- -11/Scrapyard -10/Materials -9/Materials (discovered 1 exit: [*Min]) History --------- Turn | Location | Event 4 | -11/Scrapyard | Discovered new exit (range 15) 114 | -11/Scrapyard | Entered Materials 324 | -10/Materials | Build established: Mutant 856 | -10/Materials | Repaired Ion Engine 969 | -10/Materials | Discovered new exit (range 12) 1014 | -10/Materials | Entered another Materials area 1014 | -9/Materials | Evolved 2 slots: Power x1, Propulsion x1 1210 | -9/Materials | Destroyed 7 combat bots 1751 | -9/Materials | Discovered new exit (range 9) 1788 | -9/Materials | Core integrity fell below 50% 1818 | -9/Materials | Lost 5 parts (3n1u1w) 1877 | -9/Materials | Core integrity fell below 20% 1938 | -9/Materials | Destroyed by Y-45 Defender with Beam Rifle Last Messages --------------- Acquired Imp. EM Shotgun. K-01 Serf collects debris. G-34 Mercenary destroyed. R-06 Scavenger collects Aluminum Leg. Acquired 37 matter. U-05 Engineer lays Concrete. W-16 Scout sends out distress signal. M-13 Machinist repairs T-07 Excavator. Slammed into W-16 Scout. Destabilizing: Core damaged (-12). Critical hit (Burn: +37). Slammed into U-05 Engineer. Destabilizing: System corrupted (+2). Imp. EM Shotgun destroyed. K-01 Serf collects debris. Slammed into Y-45 Defender. Spread Laser broken. Destabilizing: Short circuit. System corrupted: Matter fused (-10). Critical hit (Burn: +37). Map ----- +----------------------------------------------------+ | ???????# #?????????########?########????????? | | ???????# #?????????? #?# #?????#### | | ???????# #?????????? #?# #????? | | ???????# #??????????? """ ??# """ #????# | | ???????# #??????????? """ ??# """ #????#" | | ???????# #????????????"""???# """ #????#T | | ???????####+###???????????? ???# #????#" | | ???####### ###############+#####+##+######## | | =%! | | ???####### ############### #""!""""" | | ???######## ##?????????????# % #"""""""" | | ???# ## #??????????????# /= | | ???? ## #??????????????# ############# %% | | ! ## #?????????????## ##????# # %%% | | ## #?????????????# ###### # %% | | #### ## #?????????????#! < + | | ## ### #?????????????# ###### # | | ## #?# #?????????????#####????# # | | ## #?# #??????????????????????## "# | | "" ## #?# #???????????????????????# "# | | "" ## #?# #???##########??????????# """""""""# | | "" ## #?# #???# #??????????# #### ### | | + #?# #???# #######???## ##?####### | | = ###+####+#???# # ##### #?# # | | # #???# # u k ### # | | T" # """"" #???#^ """ @Y u + | | "" # """"" ###?# """"" # ### # | | # """"" ""#?# """"" # ##### #?# # | | #+## T"#?# """"" ## ##???#######?####### | | # ## ""#?# """ ## #??????????????????# | | # ## ! [/ ###?########### #??????????????????? | | # ## [/ #????# # r#??????????????????? | | # ## / #????#""" # #??????????????????? | | # ###########????#""" # #??????????????????? | | # #??###########?#""" # #??????????????????? | | #+#### """"" ### + +??????????????????? | | ## ""T"" ## ""# #??????????????????? | | ## ## T"# #??????????????????? | | "" ## """ """ ### ""# #??????????????????? | | "" ## """ """ #?# # #??????????????????? | | "" ## """ """ #?########## ???????????????????? | | ## #??????????# ?????????????????????? | | ###### #???????#### ?????????????????????? | | #????#+###+########????#""" ?????????????????????? | | ?????????????????????????????????????????????????? | | ?????????????????????????????????????????????????? | | ?????????????????????????????????????????????????? | | ?????????????????????????????????????????????????? | | ?????????????????????????????????????????????????? | | ##????????? ????????????????????????????????????? | +----------------------------------------------------+ Best States ------------- Heat Dissipation 50 Energy Generation 10 Energy Capacity 250 Matter Stores 350 Matter Capacity 350 Sight Range 16 Terrain Scan Density 85 ECM Strength 1 Armor Coverage 150 Evasion (%) 50 Targeting Accuracy 6 Recoil Reduction 3 Item Schematics ----------------- Lrg. Storage Unit | -9/Materials | Scanalyzed Robot Schematics ------------------ None Fabricated ------------ Nothing Alien Tech Used ----------------- None Achievements -------------- Fist Fight Challenges ------------ None Game ------ Seed PointTargetInverter Manual? 0 Play Time 00:20:32 Cumulative 2.9 hours Start 2024.04.09 @ 00:49:06 End 2024.04.09 @ 01:07:52 Sessions 1 Manual Loads 0 Difficulty Rogue Special Mode None Game No. 4 Rogue 4 Adventurer 0 Explorer 0 Win Type - Total 0 Types 0/0/0/0/0/0/0/0/0 Lore% 5 Gallery% 7 Achievement% 8 Wizard Run 0 Options --------- Layout 1 ASCII 0 Keyboard 1 Movement Arrows Keybinds 0 Fullscreen 2 Font 32/Terminus Map View 50x35 Zoom Use 0% Tactical HUD 0 Map Filters NONE Filters NONE Steam 1 RUN: bcf31c30-52eb-441f-aed3-e709116fba35